Cogmind - Beta 13 @@@ ROGUE MODE // 2024.04.11 @ 22:59:05 Player: Vriska Result: Destroyed by as-02684 with Assembled Maul Performance ------------- Evolutions (0) 0 Regions Visited (4) 800 Robots Destroyed (24) 120 Value Destroyed (793) 793 Prototype IDs (1) 20 Alien Tech Used (0) 0 Bonus (300) 300 TOTAL SCORE: 2033 Bonus ------- Aligned with FarCom 300 Cogmind --------- Core Integrity 0/250 Matter 290/300 Energy 250/250 System Corruption 0% Temperature Cool (96) Movement Walking (90) Location -9/Mines Parts ------- > --- POWER (1) -------- Ion Engine > --- PROPULSION (2) --- Potential Leg Potential Leg > --- UTILITY (2) ------ Large Storage Unit Signal Interpreter > --- WEAPON (2) ------- Plasma Cannon Flak Gun > --- INVENTORY (15) --- Light Ion Engine Carbon-fiber Leg Improved Titanium Leg Sensor Array Armor Integrity Analyzer Kinecellerator Improved Medium Armor Plating Plasma Cannon Peak State ------------ > --- POWER ------------ Ion Engine > --- PROPULSION ------- Potential Leg Potential Leg > --- UTILITY ---------- Large Storage Unit Signal Interpreter > --- WEAPON ----------- Plasma Cannon Flak Gun > --- INVENTORY -------- Light Ion Engine Carbon-fiber Leg Improved Titanium Leg Sensor Array Armor Integrity Analyzer Kinecellerator Improved Medium Armor Plating Plasma Cannon [Rating: 33] Favorites ----------- Power Ion Engine Engine Ion Engine Propulsion Aluminum Leg Leg Aluminum Leg Utility Targeting Computer Storage Small Storage Unit Processor Targeting Computer Weapon Heavy EM Pulse Gun Energy Gun Heavy EM Pulse Gun Energy Cannon Plasma Cannon Ballistic Gun Light Assault Rifle Build | -11 -10 -10 -10 -9 ------- Run | Yrd Mat Min Exi Min Slots Evolved . | . . . . . Power . | . . . . . Propulsion . | . . . . . Utility . | . . . . . Weapon . | . . . . . Parts Attached 23 | 6 8 . 4 5 Power 2 | 1 . . 1 . Engine 2 | 1 . . 1 . Core . | . . . . . Reactor . | . . . . . Propulsion 8 | 2 4 . 2 . Treads . | . . . . . Leg 8 | 2 4 . 2 . Wheel . | . . . . . Hover . | . . . . . Flight . | . . . . . Utility 5 | 1 2 . 1 1 Device . | . . . . . Storage 2 | 1 . . 1 . Processor 3 | . 2 . . 1 Hackware . | . . . . . Protection . | . . . . . Artifact . | . . . . . Weapon 8 | 2 2 . . 4 Energy Gun 5 | 1 2 . . 2 Energy Cannon 1 | . . . . 1 Ballistic Gun 2 | 1 . . . 1 Ballistic Cannon . | . . . . . Launcher . | . . . . . Special Weapon . | . . . . . Impact Weapon . | . . . . . Slashing Weapon . | . . . . . Piercing Weapon . | . . . . . Special Melee Weapon . | . . . . . Unidentified Prototypes 1 | . . . 1 . Parts Lost 2 | . . . . 2 Power . | . . . . . Propulsion . | . . . . . Utility . | . . . . . Weapon 2 | . . . . 2 Highest Loss Streak 1 | . . . . 1 To Critical Strikes . | . . . . . Average Slot Usage (%) 97 | . 95 100 100 100 Engine 14 | . 14 14 14 14 Leg 27 | . 27 28 28 28 Storage 14 | . 14 14 14 14 Processor 12 | . 10 14 14 14 Energy Gun 18 | . 18 28 28 14 Ballistic Gun 8 | . 9 . . 10 Naked Turns . | . . . . . Heaviest Build 36 | 13 16 16 31 36 Greatest Support 60 | 20 20 20 60 60 Greatest Overweight (x) 1 | . 1 . 1 . Average Overweight (x) . | . . . . . Largest Inventory Capacity 15 | 8 8 8 15 15 Average Capacity 10 | 7 8 8 8 15 Most Carried 10 | 4 8 8 8 10 Average Carried 6 | 1 4 8 7 8 Final Capacity 15 | 8 8 8 15 15 Final Carried 8 | 1 8 8 7 8 Class Distribution -------------------- 100% | Mutant Dominant Class ---------------- Mutant | -10/Materials Mutant | -10/Mines Mutant | -10/Exiles Mutant | -9/Mines Resources | -11 -10 -10 -10 -9 ----------- Run | Yrd Mat Min Exi Min Matter Collected 497 | 230 127 . . 140 Remotely . | . . . . . Salvage Created 962 | . 603 . . 359 Parts 44 | . 30 . . 14 Haulers Intercepted . | . . . . . Recyclers Shooed 1 | . 1 . . . Parts Field Recycled . | . . . . . Retrieved Matter . | . . . . . Parts Self-Destructed . | . . . . . Prevented . | . . . . . Kills | -11 -10 -10 -10 -9 ------- Run | Yrd Mat Min Exi Min Combat Hostiles Destroyed 22 | . 12 . . 10 Guns 18 | . 11 . . 7 Cannons 2 | . . . . 2 AOE 1 | . . . . 1 Classes Destroyed 6 | . 4 . . 2 Worker 1 | . 1 . . . Operator 1 | . 1 . . . Watcher 2 | . 2 . . . Grunt 19 | . 12 . . 7 Brawler 1 | . . . . 1 Assembled 2 | . . . . 2 Best Kill Streak 4 | . 4 . . 3 Combat Bots Only 3 | . 3 . . 3 Max Kills in Single Turn 2 | . 2 . . 1 Gunslinging 1 | . 1 . . . Exploded 1 | . . . . 1 Melee . | . . . . . Uniques/NPCs Destroyed . | . . . . . Combat | -11 -10 -10 -10 -9 -------- Run | Yrd Mat Min Exi Min Hostile Shots Fired 104 | . 72 . . 32 Missed 26 | . 17 . . 9 Damage Taken 1081 | . 680 . . 401 Core 269 | . 160 . . 109 Absorbed by Shields . | . . . . . Regen/Repaired (Parts) 94 | . 94 . . . Core Remaining (%) 100 | 100 . . . . Volleys Fired 91 | . 68 . . 23 Largest 2 | . 2 . . 2 Hottest 108 | . 90 . . 108 Shots Fired 182 | . 136 . . 46 Gun 178 | . 136 . . 42 Cannon 4 | . . . . 4 Launcher . | . . . . . Special . | . . . . . Kinetic 70 | . 57 . . 13 Thermal 61 | . 57 . . 4 Explosive . | . . . . . Electromagnetic 51 | . 22 . . 29 Robot Hit Streak 15 | . 15 . . 5 Robot Miss Streak 6 | . 5 . . 6 Penetration Max . | . . . . . Secondary Targets 3 | . 3 . . . Max Gunslinging Chain 1 | . 1 . . . Shots Hit Robots 111 | . 83 . . 28 Core Hits 54 | . 34 . . 20 Critical Kills . | . . . . . Critical Parts Destroyed . | . . . . . Critical Strikes 8 | . 6 . . 2 Burn 4 | . 4 . . . Corrupt 4 | . 2 . . 2 Melee Attacks . | . . . . . Impact . | . . . . . Slashing . | . . . . . Piercing . | . . . . . Sneak Attacks . | . . . . . Combat Hostiles . | . . . . . Follow-up Attacks . | . . . . . Damage Inflicted 1459 | . 929 . . 530 Guns 1312 | . 924 . . 388 Cannons 51 | . . . . 51 Explosions 73 | . . . . 73 Melee . | . . . . . Ramming 23 | . 5 . . 18 Kinetic 455 | . 321 . . 134 Thermal 513 | . 389 . . 124 Explosive . | . . . . . Electromagnetic 468 | . 214 . . 254 Impact . | . . . . . Slashing . | . . . . . Piercing . | . . . . . Highest Corruption . | . . . . . Average Corruption . | . . . . . Corruption Purged . | . . . . . Corruption Blocked . | . . . . . Overload Shots . | . . . . . Overflow Damage . | . . . . . Projectiles . | . . . . . Explosions . | . . . . . Melee . | . . . . . Knockbacks 1 | . 1 . . . Impact 1 | . 1 . . . Kinetic . | . . . . . Secondary . | . . . . . Self-Inflicted Damage 35 | . . . . 35 Shots 1 | . . . . 1 Rammed . | . . . . . Targets Rammed 4 | . 2 . . 2 Kicked 4 | . 2 . . 2 Crushed . | . . . . . Highest Temperature 258 | . 258 . . 196 Average Temperature 75 | . 78 . . 66 Received Heat Transfer 556 | . 402 . . 154 Siege Activations . | . . . . . Robots Corrupted 1 | . 1 . . . Combat Hostiles 1 | . 1 . . . Parts Fried . | . . . . . Impact Corruptions . | . . . . . Robots Melted . | . . . . . Combat Hostiles . | . . . . . Parts Melted 4 | . 4 . . . Heat Transferred 1643 | . 1443 . . 200 Parts Sabotaged . | . . . . . Parts Stolen . | . . . . . Parts Stripped . | . . . . . Power Chain Reactions 1 | . . . . 1 Alert | -11 -10 -10 -10 -9 ------- Run | Yrd Mat Min Exi Min Peak Influence 180 | . 180 51 . 139 Initial 51 | . . 51 . . Average 58 | . 61 51 . 59 Maximum Alert Level . | . . . . . Low Security (%) 100 | 100 100 100 . 100 Level 1 . | . . . . . Level 2 . | . . . . . Level 3 . | . . . . . Level 4 . | . . . . . Level 5 . | . . . . . High Security . | . . . . . Max Security . | . . . . . Squads Dispatched 5 | . 3 . . 2 Investigation 3 | . 2 . . 1 Extermination . | . . . . . Reinforcement 2 | . 1 . . 1 Assault . | . . . . . Garrison . | . . . . . Intercept . | . . . . . Searches Triggered . | . . . . . Construction Impeded 1 | . . . . 1 Haulers Reinforced . | . . . . . Active Scanning Responses . | . . . . . Cargo Convoy Interrupts . | . . . . . Stealth | -11 -10 -10 -10 -9 --------- Run | Yrd Mat Min Exi Min Distress Signals . | . . . . . Communications Jammed . | . . . . . Distress Signals . | . . . . . Times Spotted 36 | . 27 . . 9 Peak Tracking Total 2 | . 2 . . 2 Tactical Retreats 2 | . 2 . . . Traps | -11 -10 -10 -10 -9 ------- Run | Yrd Mat Min Exi Min Traps Triggered . | . . . . . Indirectly . | . . . . . Trap Hack Attempts . | . . . . . Triggered . | . . . . . Disarmed . | . . . . . Reprogrammed . | . . . . . Reused . | . . . . . Traps Extracted . | . . . . . Installed . | . . . . . Triggered 2 | . 1 . . 1 Machines | -11 -10 -10 -10 -9 ---------- Run | Yrd Mat Min Exi Min Machines Disabled 1 | . 1 . . . Max in Single Turn 1 | . 1 . . . Machines Repaired . | . . . . . Machines Dismantled . | . . . . . Machines Sabotaged . | . . . . . Overloaded Fab Kills . | . . . . . Hacking | -11 -10 -10 -10 -9 --------- Run | Yrd Mat Min Exi Min Machines Accessed 4 | . 2 . . 2 Terminals . | . . . . . Fabricators . | . . . . . Repair Stations 1 | . 1 . . . Recycling Units 1 | . 1 . . . Scanalyzers . | . . . . . Garrison Access . | . . . . . Total Hacks 9 | . 7 . . 2 Successful 8 | . 6 . . 2 Failed 1 | . 1 . . . Catastrophic . | . . . . . Database Lockouts . | . . . . . Manual 3 | . 2 . 1 . Terminals . | . . . . . Fabricators . | . . . . . Repair Stations 5 | . 5 . . . Recycling Units 2 | . 2 . . . Scanalyzers . | . . . . . Garrison Access . | . . . . . Terminal Hacks 2 | . . . . 2 Open Door 2 | . . . . 2 Fabricator Hacks . | . . . . . Repair Station Hacks 4 | . 4 . . . Scan Component 2 | . 2 . . . Repair 2 | . 2 . . . Recycling Unit Hacks 2 | . 2 . . . Report Inventory 1 | . 1 . . . Retrieve Matter 1 | . 1 . . . Scanalyzer . | . . . . . Garrison Access Hacks . | . . . . . Unauthorized Hacks . | . . . . . Terminals . | . . . . . Fabricators . | . . . . . Repair Stations . | . . . . . Recycling Units . | . . . . . Scanalyzers . | . . . . . Garrison Access . | . . . . . Data Cores Recovered 1 | . 1 . . . Used . | . . . . . Hacking Detections 2 | . 2 . . . Full Trace Events 1 | . 1 . . . Feedback Events . | . . . . . Feedback Blocked . | . . . . . Robot Schematics Acquired . | . . . . . Robots Built . | . . . . . Authchips . | . . . . . Time . | . . . . . Total Robot Build Rating . | . . . . . Part Schematics Acquired . | . . . . . Parts Built . | . . . . . Authchips . | . . . . . Time . | . . . . . Total Part Build Rating . | . . . . . Parts Repaired 2 | . 2 . . . Time 52 | . 52 . . . Parts Recycled . | . . . . . Recycled Matter . | . . . . . Retrieved Matter 56 | . 56 . . . Retrieved Components . | . . . . . Parts Scanalyzed . | . . . . . Part Schematics Acquired . | . . . . . Parts Damaged . | . . . . . Bothacking | -11 -10 -10 -10 -9 ------------ Run | Yrd Mat Min Exi Min Used RIF Installer . | . . . . . Robots Hacked . | . . . . . Non-combat . | . . . . . Combat . | . . . . . Robot Hacks Applied . | . . . . . Relay Couplers Released . | . . . . . Fabnet Peak Effective % . | . . . . . Robots Rewired . | . . . . . Allies Hacked . | . . . . . Hacks Repelled . | . . . . . Allies | -11 -10 -10 -10 -9 -------- Run | Yrd Mat Min Exi Min Total Allies . | . . . . . Largest Group . | . . . . . Highest-Rated Group . | . . . . . Highest-Rated Ally . | . . . . . Total Orders . | . . . . . Ally Attacks . | . . . . . Total Damage . | . . . . . Kills . | . . . . . Allies Corrupted . | . . . . . Allies Melted . | . . . . . Intel | -11 -10 -10 -10 -9 ------- Run | Yrd Mat Min Exi Min Robot Analysis Total . | . . . . . Derelict Logs Recovered 2 | . . . . 2 Drone Launches . | . . . . . Drone Recoveries . | . . . . . Exploration | -11 -10 -10 -10 -9 ------------- Run | Yrd Mat Min Exi Min Turns Passed 2913 | 69 1401 63 331 1049 Spaces Moved 2313 | 57 935 53 308 960 Core 19 | 19 . . . . Treads . | . . . . . Legs 2294 | 38 935 53 308 960 Wheels . | . . . . . Hover . | . . . . . Flight . | . . . . . Fastest Speed 50 | 50 120 120 90 90 Average Speed 105 | 96 120 120 105 90 Slowest Speed 190 | 120 190 120 190 90 Overloaded Moves . | . . . . . Propulsion Burnouts . | . . . . . Robots Hopped . | . . . . . Cave-ins Triggered . | . . . . . Exploration Rate (%) 51 | 4 79 12 62 99 Regions Visited 4 Branch Regions 3 Pre-discovered Areas 1 | . . . . 1 Known Exits Taken . | . . . . . Unknown Exits Taken 4 | 1 1 1 1 . Scrap Searched 2 | . . . . 2 Spaces Dug . | . . . . . Terrain Destroyed 6 | . . . . 6 Melee . | . . . . . Projectile 2 | . . . . 2 AOE 4 | . . . . 4 Terrain Rammed . | . . . . . Walls Destroyed . | . . . . . Machines Disabled . | . . . . . Actions | -11 -10 -10 -10 -9 --------- Run | Yrd Mat Min Exi Min Total 2624 | 71 1086 52 315 1100 Wait 153 | . 57 . . 96 Move 2309 | 56 934 52 307 960 Hop . | . . . . . Pick Up 29 | 8 12 . . 9 Fast Attach 5 | . 4 . 1 . Attach 11 | 6 2 . . 3 Detach . | . . . . . Swap 7 | . 2 . 3 2 Drop 15 | 1 5 . 4 5 Fire 91 | . 68 . . 23 Melee . | . . . . . Ram . | . . . . . Kick 4 | . 2 . . 2 Crush . | . . . . . Escape Stasis . | . . . . . Rewire . | . . . . . Trap . | . . . . . Miscellaneous . | . . . . . Route ------- -11/Scrapyard -10/Materials (discovered 4 exits: [*Mat x2] / [*Min x2]) -10/Mines -10/Exiles -9/Mines (discovered 2 exits: *Mat x2) History --------- Turn | Location | Event 10 | -11/Scrapyard | Discovered new exit (range 14) 70 | -11/Scrapyard | Entered Materials 318 | -10/Materials | Build established: Mutant 377 | -10/Materials | Discovered new exit (range 12) 537 | -10/Materials | Discovered new exit (range 11) 631 | -10/Materials | Repaired Aluminum Leg 658 | -10/Materials | Repaired Aluminum Leg 1158 | -10/Materials | Core integrity fell below 50% 1216 | -10/Materials | Discovered new exit (range 13) 1297 | -10/Materials | Discovered new exit (range 14) 1471 | -10/Materials | Entered Mines 1525 | -10/Mines | Deemed a non-threat by the Exiles lab entrance 1527 | -10/Mines | Discovered new exit (range 5) 1534 | -10/Mines | Entered Exiles 1574 | -10/Exiles | Met 8R-AWN 1602 | -10/Exiles | Met EX-HEX 1653 | -10/Exiles | Met EX-BIN 1674 | -10/Exiles | Aligned with FarCom system 1675 | -10/Exiles | Given EX-Vault access code 1711 | -10/Exiles | Opened EX-Vault 1718 | -10/Exiles | Found Prototype Leg 1718 | -10/Exiles | Identified Potential Leg 1721 | -10/Exiles | Found Potential Leg 1742 | -10/Exiles | Warned to stay clear of 0b10 Research branches 1773 | -10/Exiles | Met EX-DEC 1847 | -10/Exiles | Discovered new exit (range 14) 1865 | -10/Exiles | Left Exiles lab with Potential Leg 1865 | -10/Exiles | Entered Mines 2038 | -9/Mines | Learned location of Zion (-6) 2053 | -9/Mines | Received a Rocket Launcher from a helpful Derelict 2054 | -9/Mines | Learned Materials emergency access door positions 2085 | -9/Mines | Met a Derelict shopkeep closing up shop 2196 | -9/Mines | Met a Derelict who couldn't figure out how to use a Trap Extractor 2278 | -9/Mines | Excavation squad dispatched 2278 | -9/Mines | A large section of the Mines collapsed 2402 | -9/Mines | Core integrity fell below 20% 2418 | -9/Mines | Discovered new exit (range 4) 2438 | -9/Mines | Identified exit to Materials 2779 | -9/Mines | Discovered exit to Materials (range 11) 2914 | -9/Mines | Destroyed by as-02684 with Assembled Maul Last Messages --------------- T-07 Excavator is excavating. K-01 Serf collects debris. T-07 Excavator is excavating. K-01 Serf collects debris. T-07 Excavator is excavating. K-01 Serf destroyed. Acquired 5 matter. Hvy. EM Pulse Gun destroyed. Acquired 10 matter. G-34 Mercenary destroyed. Acquired 5 matter. K-01 Serf collects debris. R-06 Scavenger collects Corrupted Lgt. Treads. R-06 Scavenger collects Corrupted Aluminum Leg. Kicked T-07 Excavator out of the way. EXIT=FOUND: MATERIALS Kicked K-01 Serf out of the way. as-03898 destroyed. Acquired 5 matter. K-01 Serf collects debris. Map ----- +----------------------------------------------------+ | ???####?????????????????????????????## #??? | | ??## ##?########????????????????#### #???? | | ??# #?#""""""#???????????????## #???? | | ??# #?# !]=[#???????????????# ##### | | ??# #?## = ##???????????????# | | ??# #??# !#####????????????# | | ???# ##### ## ##???????????# ##### | | ???# ## X #???????????# ##### #### | | ???## ##??????????## ##???## # | | ????## #####???????###??????# | | ?????## ##???????????????# | | ??????## ## ##????###???????#% | | ???????## ### ##### ##??????# | | ????????# #?### ##?????# | | ????????# #???## ## ##????# # | | ????????# #????# # ### #????# ## | | ????????# #????# #????# #? | | ????????# #????# ##????# ##? | | ????????# #????# ##### ####?????# ##?? | | ????????# #???## #???## ### ##????????# %#??? | | ????????# #??## #????####?####????####?# #??? | | ?????#### #??# ######???????????## ### #??? | | ?????# #??# ## ##??????##### #??? | | ?????# #####??# ######## % k #??? | | ?????# #??????## [[ = #### #??? | | ?????# #???????### @ =%/ k ##??# #??? | | ?????# #?????????##### =a;#### ##### ##???# #??# | | ?????# #?????????????## !##??# #???####????# #?## | | ?????# #??????????????# ;???# #???????????# ### | | ?????# #??????????????# !#???# #############% ### | | ?????# #?????????????##=%#???# !==%%*%* ## | | ?????# #???????####### #???#########[##### # | | ?????# #???##### ##??????????# #???## # | | ?????# #??## ##?????????# ######% | | ?????# #### ##????????# | | ?????# #????????####### # | | ?????# ##?????????????## | | ?????####### | *% ##?????????????### | | ???????????#### =%! !% ##??????????????# | | ??????????????## ! #??????????????# | | ???????????????# = !## #????####??????### | | ??????????????## % %## ##???## ##???????? | | ?????????????## ## # ##????# ##??????? | | ????????????## #### ##?????# ##?????? | | ?????????#### ##??# # #???????# ####### | | ????????## #???## ## #????????#" "% " !! | | ????????# #????##### #???????## " %| | | ????????## ##????????# #??????## ####### | | ???####?### ##?????????# #????### #????? | | ???#" ### ##??????????# ###### *!| %##???? | +----------------------------------------------------+ Best States ------------- Heat Dissipation 25 Energy Generation 10 Energy Capacity 250 Matter Stores 300 Matter Capacity 300 Sight Range 18 Terrain Scan Density 10 Evasion (%) 57 Targeting Accuracy 5 Item Schematics ----------------- None Robot Schematics ------------------ None Fabricated ------------ Nothing Alien Tech Used ----------------- None Achievements -------------- None Challenges ------------ None Game ------ Seed CoolingTimingRifle Manual? 0 Play Time 00:30:37 Cumulative 13.9 hours Start 2024.04.11 @ 21:14:47 End 2024.04.11 @ 22:59:05 Sessions 1 Manual Loads 0 Difficulty Rogue Special Mode None Game No. 28 Rogue 28 Adventurer 0 Explorer 0 Win Type - Total 0 Types 0/0/0/0/0/0/0/0/0 Lore% 20 Gallery% 19 Achievement% 19 Wizard Run 0 Options --------- Layout 0 ASCII 0 Keyboard 0 Movement Arrows Keybinds 0 Fullscreen 1 Font 18/SmallcapsGlow Map View 76x50 Zoom Use 0% Tactical HUD 0 Map Filters NONE Filters NONE Steam 1 RUN: 4abf212a-7b39-4453-8cba-7eb915b4bbc0